bitfinex-derivatives/quotes_SOLF0:USTF0_20230102
["timestamp","ask_amount","ask_price","bid_price","bid_amount"]
[1672700721583,0.06360079,11.294,11.289,3.07]
[1672700721795,49.99993334,11.294,11.289,3.07]
[1672700723160,53.06993334,11.294,11.288,0.06248854]
[1672700723680,3.07,11.293,11.288,0.06248854]
[1672700729885,3.06,11.29,11.288,0.06248854]
[1672700730094,3.06,11.29,11.285,0.06196634]
[1672700730414,3.06,11.29,11.284,0.06365962]
[1672700732195,3.07,11.285,11.284,0.06365962]
[1672700732402,3.07,11.285,11.281,0.06861694]
[1672700732617,3.07,11.285,11.279,0.06102038]
[1672700733983,3.13807802,11.287,11.28,3.09]
[1672700737345,0.06807802,11.287,11.281,3.07]
[1672700741649,0.06807802,11.287,11.283,3.09]
[1672700745853,3.07,11.293,11.286,3.07]
[1672700746803,3.13065945,11.293,11.286,3.07]
[1672700747015,3.13065945,11.293,11.286,3.13300483]
[1672700749534,3.07,11.292,11.286,0.06300483]
[1672700762567,0.06065945,11.293,11.292,0.19814451]
[1672700762772,575.0,11.31,11.293,0.06]
[1672700762989,48.4954,11.315,11.295,12.36]
[1672700763302,49.99993334,11.324,11.302,50.0]
[1672700763618,2.0,11.323,11.303,54.1627]
[1672700763822,0.06226707,11.317,11.311,3.06]
[1672700764032,3.13121078,11.318,11.311,3.06]
[1672700764564,0.07121078,11.318,11.312,3.07]
[1672700765406,0.07121078,11.318,11.31,0.06107003]
[1672700765407,3.07,11.317,11.31,0.06107003]
[1672700765615,3.07,11.316,11.31,0.06107003]
[1672700766875,3.07,11.317,11.31,3.13107003]
[1672700768025,0.07121078,11.318,11.31,3.13107003]
[1672700768026,3.07,11.313,11.31,0.06107003]
[1672700768236,3.07,11.311,11.308,0.06107507]
[1672700768446,49.99993334,11.314,11.293,0.06]
[1672700768447,3.07,11.31,11.306,0.06019983]
[1672700768657,3.07,11.31,11.304,0.06764327]
[1672700769924,0.06370943,11.312,11.304,0.06764327]
[1672700769925,3.07,11.311,11.304,0.06764327]
[1672700770870,0.06370943,11.312,11.305,3.09]
[1672700771596,0.06370943,11.312,11.308,3.09]
[1672700772340,0.06370943,11.312,11.307,3.06]
[1672700774863,0.06370943,11.312,11.306,3.09]
[1672700775071,3.12370943,11.312,11.304,3.13764327]
[1672700776437,2.90638299,11.312,11.304,3.13764327]
[1672700777483,2.97159194,11.312,11.304,3.13764327]
[1672700778223,3.07,11.309,11.304,0.06764327]
[1672700778434,3.09,11.308,11.304,0.06764327]
[1672700779381,3.07,11.309,11.304,0.06764327]
[1672700785581,0.01394503,11.304,11.302,3.09]
[1672700787153,0.06056943,11.307,11.303,3.09]
[1672700787362,0.06056943,11.307,11.299,0.06277631]
[1672700787363,0.06056943,11.307,11.306,3.08]
[1672700787573,0.06436247,11.31,11.306,3.08]
[1672700787888,0.06596947,11.312,11.306,3.08]
[1672700788940,3.13596947,11.312,11.304,3.14952473]
[1672700791463,0.06596947,11.312,11.304,0.06952473]
[1672700793249,6.28596947,11.312,11.304,0.06952473]
[1672700794091,6.21,11.31,11.304,0.06952473]
[1672700794407,2.0,11.309,11.304,0.06952473]
[1672700796297,56.19993334,11.305,11.29,6.22]
[1672700796506,6.21,11.302,11.291,50.9657]
[1672700796715,6.2,11.3,11.291,50.9657]
[1672700797131,6.26433132,11.3,11.292,0.2603118]
[1672700808697,6.24433132,11.3,11.292,0.2603118]
[1672700819835,0.06433132,11.3,11.292,0.2603118]
[1672700833918,0.06433132,11.3,11.293,6.14]
[1672700836129,1.08847393,11.311,11.3,0.11364015]
[1672700836334,6.17,11.307,11.3,0.11364015]
[1672700837071,6.23085444,11.307,11.3,0.17770343]
[1672700838126,0.06085444,11.307,11.301,6.17]
[1672700838326,0.06085444,11.307,11.302,2.0]
[1672700838541,0.06085444,11.307,11.302,8.15]
[1672700839803,0.06085444,11.307,11.302,6.15]
[1672700840015,0.06085444,11.307,11.301,8.17]
[1672700841378,0.06085444,11.307,11.302,6.15]
[1672700841795,0.06085444,11.307,11.301,2.0]
[1672700842010,6.17,11.316,11.306,6.14]
[1672700842953,0.06571145,11.315,11.307,0.06704954]
[1672700844636,0.06571145,11.315,11.31,6.14]
[1672700848520,0.06571145,11.315,11.308,49.7256]
[1672700849468,0.06571145,11.315,11.308,55.8956]
[1672700849888,0.06571145,11.315,11.31,6.13]
[1672700851568,6.17,11.323,11.314,6.13]
[1672700851884,6.17,11.325,11.315,8.14]
[1672700852621,50.06633869,11.324,11.316,0.06532401]
[1672700853249,6.17,11.323,11.316,0.06532401]
[1672700853986,6.17,11.32,11.316,0.06532401]
[1672700857459,6.16,11.319,11.316,0.06532401]
[1672700857669,6.16,11.319,11.314,0.06298985]
[1672700857879,6.16,11.319,11.313,0.07138612]
[1672700858090,6.16,11.319,11.312,0.06560821]
[1672700859562,6.17,11.316,11.312,0.06560821]
[1672700861981,6.12,11.319,11.312,0.06560821]
[1672700871326,0.06985357,11.32,11.312,0.06560821]
[1672700871327,6.17,11.317,11.312,0.06560821]
[1672700871539,6.17,11.316,11.312,0.06560821]
[1672700872068,6.17,11.317,11.312,0.06560821]
[1672700872696,6.17,11.313,11.304,6.13]
[1672700872910,6.17,11.311,11.302,6.15]
[1672700873115,6.17,11.311,11.303,52.0492]
[1672700873854,6.24119591,11.311,11.303,52.11844221]
[1672700878375,6.16,11.307,11.303,0.06924221]
[1672700880796,0.07119591,11.311,11.296,49.9255]
[1672700880797,6.16,11.304,11.296,49.9255]
[1672700881008,6.17,11.3,11.291,6.17]
[1672700881320,6.17,11.3,11.292,2.0]
[1672700881522,6.17,11.301,11.292,8.17]
[1672700881952,6.17,11.307,11.298,8.13]
[1672700883100,0.06365967,11.306,11.299,0.06985751]
[1672700886156,0.06365967,11.306,11.3,6.17]
[1672700887311,6.17,11.305,11.299,0.06985751]
[1672700891830,0.06365967,11.306,11.299,0.06985751]
[1672700894564,6.11,11.304,11.299,0.06985751]
[1672700894773,6.11,11.304,11.292,6.12]
[1672700894774,6.13,11.302,11.291,6.17]
[1672700895088,2.0,11.301,11.291,6.17]
[1672700895928,0.06406514,11.3,11.292,0.07008544]
[1672700896133,0.06406514,11.3,11.292,2.07008544]
[1672700897925,0.06406514,11.3,11.292,0.07008544]
[1672700904333,6.23406514,11.3,11.292,0.07008544]
[1672700905178,0.06406514,11.3,11.292,0.07008544]
[1672700915482,0.06406514,11.3,11.292,6.24008544]
[1672700920943,0.06406514,11.3,11.295,6.17]
[1672700932495,24.78,11.316,11.296,8.17]
[1672700932815,6.17,11.308,11.3,2.0]
[1672700933654,6.232302,11.308,11.3,2.06839702]
[1672700933972,0.062302,11.308,11.301,6.17]
[1672700934177,0.062302,11.308,11.302,6.17]
[1672700934392,0.062302,11.308,11.303,6.13]
[1672700934705,0.062302,11.308,11.301,6.17]
[1672700937752,0.062302,11.308,11.3,6.19839702]
[1672700937964,6.232302,11.308,11.3,0.06839702]
[1672700942590,6.15,11.305,11.3,0.06839702]
[1672700943852,6.17,11.307,11.3,0.06839702]
[1672700946060,5.97720121,11.307,11.3,0.06839702]
[1672700948052,6.17,11.305,11.3,0.06839702]
[1672700950367,6.17,11.301,11.3,9.702e-05]
[1672700950578,6.17,11.301,11.291,6.17]
[1672700950891,6.15,11.298,11.289,6.17]
[1672700951309,0.06577711,11.297,11.29,0.06887419]
[1672700953940,0.06577711,11.297,11.29,6.23887419]
[1672700954568,0.06577711,11.297,11.292,6.17]
[1672700954991,0.06577711,11.297,11.292,3.06]
[1672700959086,3.09,11.295,11.29,0.06887419]
[1672700968123,0.06577711,11.297,11.291,3.06]
[1672700974115,49.99993334,11.305,11.293,3.06]
[1672700974422,3.06,11.301,11.293,3.06]
[1672700974844,6.17,11.301,11.293,6.16]
[1672700975058,6.24074155,11.301,11.293,6.16]
[1672700975267,6.24074155,11.301,11.293,6.23147129]
[1672700985353,6.24074155,11.301,11.293,0.07147129]
[1672700985354,6.17,11.299,11.293,0.07147129]
[1672700991131,6.12,11.294,11.293,7.129e-05]
[1672700991343,6.12,11.294,11.284,6.17]
[1672700991656,6.12,11.294,11.278,51.8915]
[1672700991657,6.17,11.295,11.286,6.16]
[1672700992182,0.06094813,11.294,11.287,0.06459486]
[1672700992392,6.23094813,11.294,11.287,0.06459486]
[1672700995543,6.17,11.29,11.287,0.06459486]
[1672700995750,6.17,11.29,11.285,0.06148218]
[1672700995963,6.17,11.29,11.284,0.060472]
[1672700996273,6.17,11.29,11.283,0.06775963]
[1672700996487,6.17,11.288,11.283,0.06775963]
[1672700997644,6.2314831,11.291,11.283,0.06775963]
[1672701000481,0.0614831,11.291,11.286,6.17]
[1672701000695,6.17,11.297,11.288,6.17]
[1672701001007,6.17,11.297,11.285,52.7663]
[1672701001008,6.17,11.292,11.285,50.7663]
[1672701001741,6.17,11.29,11.285,50.83439806]
[1672701002366,6.17,11.29,11.285,0.06809806]
[1672701003740,6.17,11.289,11.285,0.06809806]
[1672701005421,6.12,11.287,11.285,0.06809806]
[1672701005626,6.12,11.287,11.282,0.06338162]
[1672701005842,6.17,11.286,11.281,0.06749776]
[1672701006052,6.17,11.286,11.28,0.06711388]
[1672701006268,6.17,11.284,11.279,0.06908823]
[1672701006473,6.17,11.281,11.278,0.06898582]
[1672701006684,6.17,11.281,11.276,0.07044736]
[1672701006894,6.17,11.281,11.275,0.065552]
[1672701007734,6.22824115,11.282,11.275,0.065552]
[1672701009830,0.06824115,11.282,11.275,6.235552]
[1672701010993,0.06824115,11.282,11.275,6.195552]
[1672701013304,6.23824115,11.282,11.275,0.065552]
[1672701017925,6.17,11.28,11.275,0.065552]
[1672701019727,6.12,11.276,11.266,6.13]
[1672701020657,6.16,11.273,11.267,0.06819058]
[1672701020868,6.12,11.271,11.266,0.06770303]
[1672701021078,6.12,11.271,11.265,0.06812807]
[1672701021920,6.16,11.27,11.265,0.06812807]
[1672701022129,6.17,11.269,11.265,0.06812807]
[1672701022973,6.12,11.271,11.265,0.06812807]
[1672701024016,6.16,11.269,11.265,0.06812807]
[1672701031162,6.16,11.269,11.265,2.807e-05]
[1672701031370,6.17,11.266,11.265,2.807e-05]
[1672701031582,6.17,11.266,11.257,6.17]
[1672701032215,0.06403317,11.265,11.258,0.06280458]
[1672701032423,0.06403317,11.265,11.258,2.06280458]
[1672701033896,0.06403317,11.265,11.258,8.23280458]
[1672701036212,0.06403317,11.265,11.258,6.23280458]
[1672701041563,0.06403317,11.265,11.26,6.17]
[1672701041779,0.06403317,11.265,11.262,6.12]
[1672701041990,6.17,11.271,11.262,6.12]
[1672701042305,0.06514928,11.27,11.263,0.06203362]
[1672701043042,0.06514928,11.27,11.268,6.17]
[1672701043254,0.06635725,11.273,11.268,6.17]
[1672701043772,0.06635725,11.273,11.27,2.0]
[1672701043986,0.06386649,11.275,11.27,2.0]
[1672701044192,0.06252782,11.276,11.275,0.14924217]
[1672701044408,6.17,11.278,11.275,0.14924217]
[1672701045357,0.07080424,11.279,11.275,0.14924217]
[1672701049135,6.16,11.282,11.279,0.04038877]
[1672701054290,0.06654316,11.284,11.279,0.04038877]
[1672701056391,6.17,11.283,11.279,0.04038877]
[1672701057020,6.16,11.282,11.279,0.04038877]
[1672701057337,6.17,11.28,11.279,0.04038877]
[1672701058495,6.17,11.28,11.277,0.06844876]
[1672701058705,6.17,11.28,11.275,0.14924217]
[1672701059649,6.16,11.279,11.275,0.14924217]
[1672701068580,6.17,11.277,11.275,0.14924217]
[1672701069839,6.17,11.277,11.275,4.217e-05]
[1672701074985,6.17,11.277,11.269,6.13]
[1672701075201,6.17,11.276,11.268,6.17]
[1672701076146,6.23399484,11.276,11.268,6.23924883]
[1672701087284,6.05996209,11.276,11.268,6.23924883]
[1672701089798,0.06399484,11.276,11.268,0.06924883]
[1672701090013,6.17,11.275,11.268,0.06924883]
[1672701091170,6.17,11.271,11.268,0.06924883]
[1672701091486,8.17,11.27,11.261,6.17]
[1672701092326,0.06298637,11.269,11.262,0.06441025]
[1672701092956,0.06298637,11.269,11.262,6.23441025]
[1672701099685,6.23298637,11.269,11.262,0.06441025]
[1672701103783,6.03228977,11.269,11.262,0.06441025]
[1672701104834,6.09534746,11.269,11.262,0.06441025]
[1672701107261,6.17,11.267,11.262,0.06441025]
[1672701108527,6.23305769,11.269,11.262,0.06441025]
[1672701109312,3.1,11.268,11.262,0.06441025]
[1672701127557,3.08,11.265,11.262,0.06441025]
[1672701127768,3.08,11.265,11.26,0.06171224]
[1672701127979,3.08,11.265,11.259,0.06855135]
[1672701130691,0.06125841,11.266,11.26,3.1]
[1672701132377,0.06125841,11.266,11.262,3.1]
[1672701136472,0.06125841,11.266,11.26,51.0644]
[1672701136473,3.08,11.271,11.264,3.1]
[1672701137418,3.14001603,11.271,11.264,3.16106342]
[1672701141516,0.06001603,11.271,11.266,3.1]
[1672701142247,0.06001603,11.271,11.267,3.08]
[1672701142457,3.09,11.277,11.27,3.1]
[1672701143514,3.15113091,11.277,11.27,3.1]
[1672701143727,3.15113091,11.277,11.27,3.16795792]
[1672701145515,0.06113091,11.277,11.271,3.1]
[1672701151507,3.1,11.272,11.27,0.06795792]
[1672701151717,3.1,11.272,11.267,0.07115438]
[1672701151921,3.16461028,11.273,11.266,3.16810283]
[1672701152136,3.16394518,11.273,11.266,3.16465733]
[1672701154555,0.06394518,11.273,11.267,3.08]
[1672701155184,3.1,11.274,11.273,0.11714604]
[1672701162851,3.09,11.276,11.273,0.11714604]
[1672701163064,0.06674539,11.277,11.273,0.11714604]
[1672701167581,3.16674539,11.277,11.273,0.11714604]
[1672701169581,3.1,11.276,11.273,0.11714604]
[1672701169791,3.1,11.275,11.273,0.11714604]
[1672701170003,3.1,11.275,11.273,4.604e-05]
[1672701170415,3.1,11.275,11.27,0.06002107]
[1672701175885,3.14674539,11.277,11.27,3.16002107]
[1672701178096,0.06674539,11.277,11.271,3.08]
[1672701181664,0.06674539,11.277,11.273,3.1]
[1672701182613,0.06674539,11.277,11.272,3.1]
[1672701184925,0.00540912,11.277,11.272,3.1]
[1672701185554,3.10540912,11.277,11.271,53.1096]
[1672701186500,3.10540912,11.277,11.27,3.14002107]
[1672701186712,3.1,11.274,11.27,0.06002107]
[1672701189653,3.1,11.276,11.27,0.06002107]
[1672701194382,0.00540912,11.277,11.271,3.08]
[1672701194688,0.00540912,11.277,11.272,2.0]
[1672701200051,0.00540912,11.277,11.271,54.3281]
[1672701206249,0.00540912,11.277,11.273,6.2]
[1672701206459,0.00540912,11.277,11.271,48.1581]
[1672701206460,6.2,11.283,11.274,8.2]
[1672701206987,6.2,11.287,11.279,6.2]
[1672701207513,6.26217757,11.287,11.279,6.26828104]
[1672701209404,3.12217757,11.287,11.279,3.15828104]
[1672701219702,3.08,11.283,11.279,0.06828104]
[1672701220861,2.99893145,11.283,11.279,0.06828104]
[1672701237673,2.90213679,11.283,11.279,0.06828104]
[1672701241769,3.12217757,11.287,11.28,3.07]
[1672701242609,0.06217757,11.287,11.281,3.09]
[1672701242818,0.06217757,11.287,11.282,3.07]
[1672701245971,3.14217757,11.287,11.28,53.0207]
[1672701250704,2.90852019,11.287,11.28,53.0207]
[1672701251755,2.97419519,11.287,11.28,53.0207]
[1672701269833,3.125675,11.287,11.28,53.0207]
[1672701279917,0.065675,11.287,11.281,3.09]
[1672701289899,0.065675,11.287,11.28,49.9307]
[1672701289900,3.125675,11.287,11.28,53.0207]
[1672701299358,3.09,11.284,11.279,0.06828104]
[1672701302725,0.065675,11.287,11.279,3.15828104]
[1672701302726,3.09,11.286,11.279,3.15828104]
[1672701312495,0.065675,11.287,11.283,3.09]
[1672701315437,0.065675,11.287,11.282,3.09]
[1672701317650,3.155675,11.287,11.28,3.08]
[1672701317859,3.06,11.285,11.279,0.06828104]
[1672701322001,3.145675,11.287,11.28,3.07]
[1672701327440,3.145675,11.287,11.279,0.06828104]
[1672701327441,0.065675,11.287,11.281,3.08]
[1672701341614,3.08,11.286,11.279,3.15828104]
[1672701342136,3.06,11.284,11.279,0.06828104]
[1672701342243,3.06,11.28,11.271,3.07]
[1672701342453,3.09,11.279,11.271,3.07]
[1672701342664,3.06,11.28,11.273,3.07]
[1672701343295,3.13079813,11.28,11.273,3.13521801]
[1672701356342,15.39,11.295,11.277,3.09]
[1672701356533,12.36,11.296,11.284,3.08]
[1672701356534,3.09,11.291,11.284,3.08]
[1672701356745,3.06,11.293,11.285,3.09]
[1672701357393,0.06947199,11.293,11.29,3.09]
[1672701357587,0.07097663,11.295,11.291,3.07]
[1672701357901,0.06657594,11.297,11.291,3.07]
[1672701360424,0.06657594,11.297,11.293,3.07]
[1672701360738,0.06657594,11.297,11.294,3.08]
[1672701360945,0.06340672,11.299,11.294,3.08]
[1672701361161,0.06610157,11.3,11.294,3.08]
[1672701364523,0.06610157,11.3,11.293,6.14]
[1672701370228,0.06610157,11.3,11.295,50.0]
[1672701370410,0.06610157,11.3,11.297,6.17]
[1672701370620,0.06516875,11.302,11.297,6.17]
[1672701370826,0.06273093,11.303,11.299,6.15]
[1672701371049,6.17,11.308,11.299,6.15]
[1672701371354,6.17,11.31,11.3,8.21634279]
[1672701371565,6.17,11.31,11.3,8.15]
[1672701371770,6.17,11.31,11.301,2.0]
[1672701372404,0.06295293,11.309,11.302,0.06741828]
[1672701378501,0.06295293,11.309,11.302,6.21741828]
[1672701380921,6.17,11.308,11.302,0.06741828]
[1672701384113,0.06295293,11.309,11.302,0.06741828]
[1672701399165,6.11,11.307,11.302,0.06741828]
[1672701399308,3.08,11.305,11.302,0.06741828]
[1672701399517,3.08,11.305,11.3,0.06522962]
[1672701400895,0.06697693,11.306,11.3,0.06522962]
[1672701402566,0.06697693,11.306,11.301,3.07]
[1672701404355,0.06697693,11.306,11.301,2.91785146]
[1672701414132,3.12697693,11.306,11.3,0.06522962]
[1672701414656,3.08,11.304,11.3,0.06522962]
[1672701415495,3.08,11.301,11.291,3.06]
[1672701415698,3.07,11.298,11.291,3.06]
[1672701416443,3.07,11.298,11.291,3.1221344]
[1672701416652,3.13133815,11.298,11.291,3.1221344]
[1672701417294,3.08,11.297,11.291,0.0621344]
[1672701429178,6.18,11.297,11.291,0.0621344]
[1672701436521,6.17,11.296,11.291,0.0621344]
[1672701442923,0.06133815,11.298,11.291,0.0621344]
[1672701443136,0.06133815,11.298,11.292,6.18]
[1672701443347,0.06133815,11.298,11.293,2.0]
[1672701449245,6.14,11.305,11.296,6.18]
[1672701450281,0.06074249,11.304,11.298,6.13]
[1672701450537,0.06074249,11.304,11.299,51.5437]
[1672701450806,0.06074249,11.304,11.3,2.0]
[1672701452906,0.06074249,11.304,11.299,49.5437]
[1672701459843,0.06074249,11.304,11.298,3.08]
[1672701460056,3.11074249,11.304,11.297,3.15037428]
[1672701463735,2.96231726,11.304,11.298,2.0]
[1672701463947,3.05,11.304,11.298,2.0]
[1672701465939,3.05,11.304,11.297,3.15037428]
[1672701490114,0.06105264,11.305,11.297,0.07037428]
[1672701490367,3.07,11.299,11.297,0.07037428]
[1672701490530,3.07,11.299,11.294,0.06746181]
[1672701490746,3.05,11.298,11.293,0.06769535]
[1672701491066,3.05,11.298,11.292,0.06289216]
[1672701493608,3.14275303,11.299,11.292,3.14289216]
[1672701496853,0.06275303,11.299,11.293,3.07]
[1672701497897,0.06275303,11.299,11.292,0.06289216]
[1672701498203,0.06275303,11.299,11.295,3.07]
[1672701523853,3.07,11.302,11.296,2.0]
[1672701524064,3.08,11.307,11.3,3.08]
[1672701524902,3.14067902,11.307,11.3,3.1491461]
[1672701525117,3.14067902,11.307,11.301,2.0]
[1672701530791,3.14067902,11.307,11.3,3.1491461]
[1672701549813,3.05,11.306,11.3,0.0691461]
[1672701558531,3.08,11.304,11.3,0.0691461]
[1672701562420,3.05,11.306,11.3,0.0691461]
[1672701562738,0.06067902,11.307,11.301,3.08]
[1672701563049,0.06067902,11.307,11.302,2.0]
[1672701564522,0.06067902,11.307,11.301,3.08]
[1672701579957,3.11067902,11.307,11.301,3.08]
[1672701589844,0.06067902,11.307,11.301,3.08]
[1672701595624,3.07,11.305,11.3,0.0691461]
[1672701599197,3.08,11.304,11.3,0.0691461]
[1672701608022,3.14067902,11.307,11.302,3.08]
[1672701614012,0.06067902,11.307,11.304,3.08]
[1672701614226,3.13624207,11.309,11.304,3.08]
[1672701615799,0.06624207,11.309,11.303,3.14997209]
[1672701618637,3.14624207,11.309,11.303,0.06997209]
[1672701658469,3.08,11.314,11.306,3.07]
[1672701658888,3.08,11.314,11.302,2.0]
[1672701659097,3.11,11.315,11.31,3.1]
[1672701660991,0.06970081,11.316,11.31,3.1]
[1672701661311,0.00970081,11.316,11.315,3.08]
[1672701661550,3.11,11.32,11.315,3.08]
[1672701668874,3.11,11.319,11.314,0.07047839]
[1672701669337,3.1,11.317,11.314,0.07047839]
[1672701669502,3.1,11.317,11.312,3.16337068]
[1672701677798,3.1,11.317,11.312,0.06337068]
[1672701678016,3.11,11.319,11.314,3.1]
[1672701678223,3.11,11.32,11.315,3.1]
[1672701679171,3.1708025,11.321,11.314,3.17551828]
[1672701689888,3.1608025,11.321,11.314,0.06551828]
[1672701704909,3.1,11.325,11.321,0.05809471]
[1672701709221,3.11,11.323,11.321,0.05809471]
[1672701710264,5.1,11.322,11.319,0.06562213]
[1672701710582,3.08,11.32,11.312,52.8614]
[1672701711318,3.14062965,11.32,11.312,52.9252358]
[1672701711739,3.14062965,11.32,11.312,52.72438689]
[1672701720246,3.14062965,11.32,11.312,3.1738358]
[1672701725719,2.9783607,11.32,11.312,3.1738358]
[1672701727391,3.1,11.317,11.312,0.0638358]
[1672701755659,3.1,11.317,11.312,0.0038358]
[1672701755876,3.08,11.313,11.312,0.0038358]
[1672701756087,3.08,11.313,11.306,54.7628]
[1672701756715,3.14357783,11.313,11.306,54.82388936]
[1672701767331,3.14357783,11.313,11.306,3.17108936]
[1672701767752,3.1,11.311,11.306,0.06108936]
[1672701767981,3.1,11.308,11.306,0.06108936]
[1672701768275,3.1,11.308,11.303,0.06882331]
[1672701768486,3.1,11.308,11.302,0.06385594]
[1672701769428,3.11,11.307,11.302,0.06385594]
[1672701769642,3.08,11.305,11.302,0.06385594]
[1672701769847,3.08,11.305,11.3,0.06415788]
[1672701770059,3.08,11.305,11.299,0.07092563]
[1672701778782,0.06450743,11.306,11.3,3.11]
[1672701778997,0.06450743,11.306,11.302,3.11]
[1672701788459,0.06450743,11.306,11.299,3.18092563]
[1672701792346,3.08,11.307,11.306,0.13044179]
[1672701795182,3.08,11.307,11.306,4.179e-05]
[1672701808844,2.94632062,11.307,11.306,4.179e-05]
[1672701819669,2.94632062,11.307,11.303,0.06870197]
[1672701819981,3.11,11.305,11.303,0.06870197]
[1672701820192,3.11,11.305,11.3,0.06882647]
[1672701820650,0.06713951,11.306,11.3,3.17882647]
[1672701827443,3.11,11.31,11.306,0.08969407]
[1672701835321,3.08,11.308,11.306,0.08969407]
[1672701835953,3.11,11.307,11.306,0.08969407]
[1672701837636,3.11,11.307,11.306,9.407e-05]
[1672701837843,3.11,11.307,11.302,0.06906963]
[1672701838051,3.11,11.307,11.301,0.06542994]
[1672701839737,3.11,11.305,11.301,0.06542994]
[1672701849831,3.11,11.306,11.301,0.06542994]
[1672701851721,3.0048721,11.306,11.301,0.06542994]
[1672701866752,2.78008356,11.306,11.301,0.06542994]
[1672701872844,0.14409842,11.301,11.299,3.11]
[1672701880623,0.14409842,11.301,11.298,3.11]
[1672701880834,0.14409842,11.301,11.296,3.17978816]
[1672701882303,0.14409842,11.301,11.298,3.11]
[1672701887037,0.05988983,11.301,11.298,3.11]
[1672701889247,0.05988983,11.301,11.299,3.07]
[1672701895125,0.05988983,11.301,11.296,0.06978816]
[1672701895342,0.05988983,11.301,11.297,3.08]
[1672701898073,3.12158587,11.304,11.299,3.07]
[1672701898913,0.06158587,11.304,11.3,3.06]
[1672701899123,3.08,11.308,11.303,3.08]
[1672701900590,3.08,11.308,11.302,0.06607133]
[1672701900812,3.07,11.307,11.303,3.06]
[1672701904061,3.12112691,11.309,11.302,3.11607133]
[1672701918561,3.07,11.304,11.302,0.06607133]
[1672701918874,3.07,11.304,11.299,0.06770421]
[1672701919085,3.07,11.304,11.298,0.06084516]
[1672701920347,3.07,11.304,11.298,2.06084516]
[1672701921503,3.07,11.304,11.298,0.06084516]
[1672701933167,3.12815074,11.305,11.298,3.14084516]
[1672701948831,3.07,11.303,11.298,0.06084516]
[1672701954082,3.07,11.302,11.298,0.06084516]
[1672701955269,3.09,11.3,11.298,0.06084516]
[1672701955449,5.09,11.299,11.289,55.7816]
[1672701955763,3.07,11.295,11.289,3.07]
[1672701957661,3.14815068,11.296,11.291,3.07]
[1672701962070,3.09,11.294,11.289,3.09]
[1672701964060,3.13815068,11.296,11.291,3.07]
[1672701969220,3.13815068,11.296,11.29,3.09]
[1672701969221,0.06815068,11.296,11.29,3.09]
[1672701971637,3.08,11.295,11.289,53.227]
[1672701982879,3.08,11.295,11.288,3.15994702]
[1672701998365,3.07,11.293,11.288,0.06994702]
[1672702003365,3.08,11.292,11.288,0.06994702]
[1672702008297,3.08,11.289,11.288,4.702e-05]
[1672702008514,3.08,11.289,11.278,3.09]
[1672702008824,3.08,11.285,11.278,3.09]
[1672702009455,3.14237685,11.285,11.278,3.1533384]
[1672702015237,3.07,11.282,11.278,0.0633384]
[1672702019547,0.06237685,11.285,11.278,0.0633384]
[1672702019758,3.09,11.282,11.278,0.0633384]
[1672702033208,3.0025452,11.282,11.278,0.0633384]
[1672702035836,3.08,11.284,11.278,0.0633384]
[1672702036046,0.06237685,11.285,11.28,3.08]
[1672702036255,3.08,11.289,11.282,3.07]
[1672702037104,3.14554171,11.289,11.282,3.13561503]
[1672702040250,3.08,11.294,11.287,3.07]
[1672702040463,3.08,11.294,11.288,2.0]
[1672702043510,0.06365241,11.295,11.289,3.06]
[1672702048130,0.06365241,11.295,11.29,3.07]
[1672702053165,3.08,11.297,11.295,0.03778899]
[1672702059785,3.07,11.297,11.295,0.03778899]
[1672702061271,0.05481349,11.295,11.292,0.06340738]
[1672702061482,0.05481349,11.295,11.29,3.14081518]